Cogmind - Beta 10.2 --- EXPLORER MODE // 2021.01.05 @ 19:20:51 Player: 1Q84 Result: Destroyed by as-65315 with Assembled Blade Performance ------------- Evolutions (0) 0 Regions Visited (4) 800 Robots Destroyed (18) 90 Value Destroyed (458) 458 Prototype IDs (26) 520 Alien Tech Used (0) 0 Bonus (210) 210 TOTAL SCORE: 2078 Bonus ------- Aligned with FarCom 300 Friendly Fire -90 Cogmind --------- Core Integrity 0/250 Matter 290/300 Energy 100/100 System Corruption 1% Temperature Cool (0) Movement Core (600) Ox11 Location -9/Mines Parts ------- > --- POWER (1) -------- (None) > --- PROPULSION (2) --- (None) > --- UTILITY (3) ------ Large Storage Unit Large Storage Unit > --- WEAPON (2) ------- Enhanced Flamer > --- INVENTORY (16) --- Medium Storage Unit Light Armor Plating Decoy Drone Bay (16/16) AWS/Autocannon Grenade Launcher Peak State ------------ > --- POWER ------------ Light Nuclear Core > --- PROPULSION ------- Aluminum Leg Aluminum Leg > --- UTILITY ---------- Large Storage Unit Decoy Drone Bay > --- WEAPON ----------- Light EM Pulse Cannon > --- INVENTORY -------- Light Ion Engine Light Ion Engine Aluminum Leg Medium Storage Unit Large Storage Unit [Rating: 22] Favorites ----------- Power Light Ion Engine Engine Light Ion Engine Power Core Light Nuclear Core Propulsion Aluminum Leg Leg Aluminum Leg Utility Large Storage Unit Device Sensor Array Storage Large Storage Unit Protection Light Armor Plating Weapon Light EM Pulse Cannon Energy Gun Medium Laser Energy Cannon Light EM Pulse Cannon Ballistic Gun Assault Rifle Special Weapon Enhanced Flamer Build | -11 -10 -10 -10 -9 ------- Run | Scr Mat Min Exi Min Slots Evolved 1 | . 1 . . . Power . | . . . . . Propulsion . | . . . . . Utility 1 | . 1 . . . Weapon . | . . . . . Parts Attached 28 | 7 12 3 4 2 Power 5 | 1 2 1 . 1 Engine 4 | 1 2 . . 1 Core 1 | . . 1 . . Reactor . | . . . . . Propulsion 7 | 2 4 1 . . Treads . | . . . . . Leg 7 | 2 4 1 . . Wheel . | . . . . . Hover . | . . . . . Flight . | . . . . . Utility 8 | 2 2 1 3 . Device 4 | 1 . 1 2 . Storage 3 | 1 1 . 1 . Processor . | . . . . . Hackware . | . . . . . Protection 1 | . 1 . . . Artifact . | . . . . . Weapon 8 | 2 4 . 1 1 Energy Gun 1 | 1 . . . . Energy Cannon 5 | . 4 . 1 . Ballistic Gun 1 | 1 . . . . Ballistic Cannon . | . . . . . Launcher . | . . . . . Special Weapon 1 | . . . . 1 Impact Weapon . | . . . . . Slashing Weapon . | . . . . . Piercing Weapon . | . . . . . Special Melee Weapon . | . . . . . Unidentified Prototypes 1 | . . . 1 . Parts Lost 7 | . . 1 . 6 Power 2 | . . . . 2 Propulsion 2 | . . . . 2 Utility . | . . . . . Weapon 3 | . . 1 . 2 Highest Loss Streak 6 | . . 1 . 6 Average Slot Usage (%) 91 | . 92 94 86 82 Engine 6 | . 11 7 . . Core 5 | . . 4 12 10 Leg 24 | . 24 25 25 23 Device 9 | . 12 11 6 . Storage 22 | . 16 25 24 25 Energy Gun 2 | . 7 . . . Energy Cannon 16 | . 8 19 17 22 Ballistic Gun 2 | . 7 . . . Naked Turns . | . . . . . Heaviest Build 45 | 16 36 38 45 45 Greatest Support 20 | 20 20 20 20 20 Greatest Overweight (x) 11 | 3 3 1 2 11 Average Overweight (x) . | . . 1 1 2 Largest Inventory Capacity 16 | 8 14 14 16 16 Average Capacity 13 | 7 10 14 14 16 Most Carried 14 | 3 9 14 14 10 Average Carried 10 | 2 6 12 11 9 Final Capacity 16 | 8 14 14 16 16 Final Carried 14 | 3 9 14 10 8 Class Distribution -------------------- 100% | Hacker-Mutant Dominant Class ---------------- Hacker-Mutant | -10/Materials Hacker-Mutant | -10/Mines Hacker-Mutant | -10/Exiles Hacker-Mutant | -9/Mines Resources | -11 -10 -10 -10 -9 ----------- Run | Scr Mat Min Exi Min Matter Collected 503 | 252 86 120 . 45 Remotely . | . . . . . Salvage Created 585 | . 274 255 . 56 Parts 36 | . 20 11 . 5 Haulers Intercepted 1 | . 1 . . . Recyclers Shooed . | . . . . . Parts Field Recycled . | . . . . . Retrieved Matter . | . . . . . Parts Self-Destructed . | . . . . . Prevented . | . . . . . Kills | -11 -10 -10 -10 -9 ------- Run | Scr Mat Min Exi Min Combat Hostiles Destroyed 16 | . 6 6 . 4 Guns 6 | . 6 . . . Cannons 10 | . . 6 . 4 Classes Destroyed 6 | . 3 1 . 2 Hauler 1 | . 1 . . . Swarmer 7 | . 2 2 . 3 Grunt 6 | . 4 2 . . Sentry 2 | . . 2 . . Demolisher 1 | . . . . 1 Zionite 1 | . . . . 1 Best Kill Streak 3 | . 2 2 . 3 Combat Bots Only 3 | . 2 2 . 3 Max Kills in Single Turn 2 | . 1 1 . 2 Gunslinging . | . . . . . Exploded . | . . . . . Melee . | . . . . . Uniques/NPCs Destroyed . | . . . . . Combat | -11 -10 -10 -10 -9 -------- Run | Scr Mat Min Exi Min Damage Taken 902 | . 201 152 . 549 Core 251 | . 55 37 . 159 Absorbed by Shields . | . . . . . Core Remaining (%) 100 | 100 . . . . Volleys Fired 37 | . 16 14 . 7 Largest 2 | . 2 2 . 2 Hottest 112 | . 70 112 . 112 Shots Fired 63 | . 32 19 . 12 Gun 32 | . 32 . . . Cannon 30 | . . 19 . 11 Launcher . | . . . . . Special 1 | . . . . 1 Kinetic 16 | . 16 . . . Thermal 17 | . 16 . . 1 Explosive . | . . . . . Electromagnetic 30 | . . 19 . 11 Robot Hit Streak 30 | . 8 20 . 30 Robot Miss Streak 2 | . 2 . . . Penetration Max . | . . . . . Secondary Targets . | . . . . . Shots Hit Robots 48 | . 21 17 . 10 Core Hits 25 | . 12 7 . 6 Critical Hits . | . . . . . Critical Kills . | . . . . . Critical Parts Destroyed . | . . . . . Melee Attacks . | . . . . . Impact . | . . . . . Slashing . | . . . . . Piercing . | . . . . . Sneak Attacks . | . . . . . Combat Hostiles . | . . . . . Follow-up Attacks . | . . . . . Damage Inflicted 961 | . 294 354 . 313 Guns 294 | . 294 . . . Cannons 543 | . . 354 . 189 Explosions 114 | . . . . 114 Melee . | . . . . . Ramming . | . . . . . Kinetic 134 | . 134 . . . Thermal 284 | . 160 . . 124 Explosive . | . . . . . Electromagnetic 543 | . . 354 . 189 Impact . | . . . . . Slashing . | . . . . . Piercing . | . . . . . Highest Corruption 1 | . 1 1 1 1 Average Corruption 1 | . 1 1 1 1 Corruption Purged . | . . . . . Effects 8 | . . 4 2 2 Message Errors 5 | . . 2 2 1 Energy Discharges 2 | . . 2 . . Data Loss (minor) 1 | . . . . 1 Overload Shots . | . . . . . Overflow Damage 9 | . . . . 9 Projectiles . | . . . . . Explosions 9 | . . . . 9 Melee . | . . . . . Knockbacks . | . . . . . Impact . | . . . . . Kinetic . | . . . . . Secondary . | . . . . . Self-Inflicted Damage . | . . . . . Shots . | . . . . . Rammed . | . . . . . Targets Rammed . | . . . . . Kicked . | . . . . . Crushed . | . . . . . Highest Temperature 180 | . 180 136 . 171 Average Temperature 55 | . 57 46 . 65 Received Heat Transfer 162 | . 84 78 . . Siege Activations . | . . . . . Robots Corrupted . | . . . . . Combat Hostiles . | . . . . . Parts Fried 4 | . . 4 . . Impact Corruptions . | . . . . . Robots Melted . | . . . . . Combat Hostiles . | . . . . . Parts Melted 1 | . 1 . . . Heat Transferred 761 | . 481 . . 280 Parts Sabotaged . | . . . . . Parts Stolen . | . . . . . Parts Stripped . | . . . . . Power Chain Reactions 2 | . . . . 2 Missiles Intercepted . | . . . . . Alert | -11 -10 -10 -10 -9 ------- Run | Scr Mat Min Exi Min Peak Influence 110 | . 107 110 . 70 Initial 9 | . . 9 . . Average 34 | . 33 40 . 24 Maximum Alert Level . | . . . . . Low Security (%) 100 | 100 100 100 . 100 Level 1 . | . . . . . Level 2 . | . . . . . Level 3 . | . . . . . Level 4 . | . . . . . Level 5 . | . . . . . High Security . | . . . . . Max Security . | . . . . . Squads Dispatched . | . . . . . Investigation . | . . . . . Extermination . | . . . . . Reinforcement . | . . . . . Assault . | . . . . . Garrison . | . . . . . Intercept . | . . . . . Construction Impeded . | . . . . . Haulers Reinforced . | . . . . . Stealth | -11 -10 -10 -10 -9 --------- Run | Scr Mat Min Exi Min Distress Signals . | . . . . . Communications Jammed . | . . . . . Distress Signals . | . . . . . Times Spotted 26 | . 11 8 . 7 Peak Tracking Total 3 | . 3 2 . 3 Tactical Retreats 2 | . . 2 . . Traps | -11 -10 -10 -10 -9 ------- Run | Scr Mat Min Exi Min Traps Triggered 7 | . 7 . . . Indirectly . | . . . . . Trap Hack Attempts . | . . . . . Triggered . | . . . . . Disarmed . | . . . . . Reprogrammed . | . . . . . Reused . | . . . . . Traps Extracted . | . . . . . Installed . | . . . . . Triggered . | . . . . . Machines | -11 -10 -10 -10 -9 ---------- Run | Scr Mat Min Exi Min Machines Disabled . | . . . . . Max in Single Turn . | . . . . . Machines Sabotaged . | . . . . . Garrisons Compromised . | . . . . . Overloaded Fab Kills . | . . . . . Fab Network Shutdowns . | . . . . . Hacking | -11 -10 -10 -10 -9 --------- Run | Scr Mat Min Exi Min Machines Accessed 8 | . 6 1 1 . Terminals 6 | . 6 . . . Fabricators . | . . . . . Repair Stations . | . . . . . Recycling Units . | . . . . . Scanalyzers . | . . . . . Garrison Access . | . . . . . Total Hacks 17 | . 15 1 1 . Successful 14 | . 12 1 1 . Failed 3 | . 3 . . . Catastrophic . | . . . . . Database Lockouts . | . . . . . Manual 12 | . 11 . 1 . Terminals 15 | . 15 . . . Fabricators . | . . . . . Repair Stations . | . . . . . Recycling Units . | . . . . . Scanalyzers . | . . . . . Garrison Access . | . . . . . Terminal Hacks 5 | . 3 1 1 . Prototype ID Bank 1 | . 1 . . . Open Door 1 | . . 1 . . Branch Access Points 1 | . 1 . . . Hauler Manifests 1 | . 1 . . . EX-Prototype ID Bank 1 | . . . 1 . Fabricator Hacks . | . . . . . Repair Station Hacks . | . . . . . Recycling Unit Hacks . | . . . . . Scanalyzer . | . . . . . Garrison Access Hacks . | . . . . . Unauthorized Hacks 9 | . 9 . . . Terminals 9 | . 9 . . . Track 5 | . 5 . . . Botnet 4 | . 4 . . . Fabricators . | . . . . . Repair Stations . | . . . . . Recycling Units . | . . . . . Scanalyzers . | . . . . . Garrison Access . | . . . . . Data Cores Recovered . | . . . . . Used . | . . . . . Hacking Detections 5 | . 5 . . . Full Trace Events . | . . . . . Feedback Events . | . . . . . Feedback Blocked . | . . . . . Robot Schematics Acquired . | . . . . . Robots Built . | . . . . . Matter . | . . . . . Time . | . . . . . Total Robot Build Rating . | . . . . . Part Schematics Acquired . | . . . . . Parts Built . | . . . . . Matter . | . . . . . Time . | . . . . . Total Part Build Rating . | . . . . . Parts Repaired . | . . . . . Time . | . . . . . Parts Recycled . | . . . . . Recycled Matter . | . . . . . Retrieved Matter . | . . . . . Retrieved Components . | . . . . . Parts Scanalyzed . | . . . . . Part Schematics Acquired . | . . . . . Parts Damaged . | . . . . . Bothacking | -11 -10 -10 -10 -9 ------------ Run | Scr Mat Min Exi Min Used RIF Installer . | . . . . . Robots Hacked . | . . . . . Non-combat . | . . . . . Combat . | . . . . . Robot Hacks Applied . | . . . . . Relay Couplers Released . | . . . . . Robots Rewired . | . . . . . Allies Hacked . | . . . . . Hacks Repelled . | . . . . . Allies | -11 -10 -10 -10 -9 -------- Run | Scr Mat Min Exi Min Total Allies . | . . . . . Largest Group . | . . . . . Highest-Rated Group . | . . . . . Highest-Rated Ally . | . . . . . Total Orders . | . . . . . Ally Attacks . | . . . . . Total Damage . | . . . . . Kills . | . . . . . Allies Corrupted . | . . . . . Allies Melted . | . . . . . Intel | -11 -10 -10 -10 -9 ------- Run | Scr Mat Min Exi Min Robot Analysis Total . | . . . . . Derelict Logs Recovered . | . . . . . Drone Launches . | . . . . . Drone Recoveries . | . . . . . Exploration | -11 -10 -10 -10 -9 ------------- Run | Scr Mat Min Exi Min Turns Passed 2533 | 61 705 998 438 331 Spaces Moved 1535 | 42 470 606 260 157 Core 11 | 8 . . . 3 Treads . | . . . . . Legs 1524 | 34 470 606 260 154 Wheels . | . . . . . Hover . | . . . . . Flight . | . . . . . Fastest Speed 50 | 50 120 150 150 180 Average Speed 149 | 115 130 150 163 188 Slowest Speed 600 | 200 210 150 180 600 Overloaded Moves . | . . . . . Propulsion Burnouts . | . . . . . Robots Hopped . | . . . . . Cave-ins Triggered . | . . . . . Exploration Rate (%) 54 | 4 81 91 62 34 Regions Visited 4 Branch Regions 3 Pre-discovered Areas . | . . . . . Known Exits Taken 4 | 1 1 1 1 . Unknown Exits Taken . | . . . . . Scrap Searched . | . . . . . Spaces Dug . | . . . . . Terrain Destroyed 10 | . . . . 10 Melee . | . . . . . Projectile . | . . . . . AOE 10 | . . . . 10 Terrain Rammed . | . . . . . Walls Destroyed . | . . . . . Machines Disabled . | . . . . . Actions | -11 -10 -10 -10 -9 --------- Run | Scr Mat Min Exi Min Total 1712 | 51 526 676 280 179 Wait 84 | . 21 50 . 13 Move 1531 | 41 469 605 259 157 Hop . | . . . . . Pick Up 16 | 3 6 3 4 . Fast Attach 18 | 7 9 . 2 . Attach 6 | . 1 1 2 2 Detach 2 | . . 1 1 . Swap 4 | . 2 2 . . Drop 14 | . 2 . 12 . Fire 37 | . 16 14 . 7 Melee . | . . . . . Ram . | . . . . . Kick . | . . . . . Crush . | . . . . . Escape Stasis . | . . . . . Rewire . | . . . . . Trap . | . . . . . Miscellaneous . | . . . . . Route ------- -11/Scrapyard -10/Materials (discovered 4 exits: *Mat x3 / *Min) -10/Mines (discovered 3 exits: *Mat x2 / *Exi) -10/Exiles -9/Mines (discovered 1 exit: *Mat) History --------- Turn | Location | Event 29 | -11/Scrapyard | Identified exit to Materials 29 | -11/Scrapyard | Discovered exit to Materials (range 16) 62 | -11/Scrapyard | Entered Materials 62 | -10/Materials | Evolved 1 slot: Utility x1 179 | -10/Materials | Identified exit to Materials 179 | -10/Materials | Discovered exit to Materials (range 7) 241 | -10/Materials | Identified exit to Mines 307 | -10/Materials | Discovered exit to Materials (range 8) 329 | -10/Materials | Build established: Hacker-Mutant 448 | -10/Materials | Discovered exit to Materials (range 3) 767 | -10/Materials | Entered Mines 805 | -10/Mines | A weapon hastily lodged in a ceiling crevice suddenly fell to the ground 861 | -10/Mines | Deemed a non-threat by the Exiles lab entrance 863 | -10/Mines | Identified exit to Exiles 863 | -10/Mines | Discovered exit to Exiles (range 5) 906 | -10/Mines | Discovered exit to Materials (range 8) 1125 | -10/Mines | Found the Drone Emporium 1132 | -10/Mines | Found Prototype Device 1464 | -10/Mines | Discovered exit to Materials (range 6) 1605 | -10/Mines | Found a hidden stash of uninstalled traps 1765 | -10/Mines | Entered Exiles 1800 | -10/Exiles | Met 8R-AWN 1830 | -10/Exiles | Met EX-HEX 1884 | -10/Exiles | Met EX-BIN 1900 | -10/Exiles | Aligned with FarCom system 1902 | -10/Exiles | Given EX-Vault access code 1978 | -10/Exiles | Opened EX-Vault 1989 | -10/Exiles | Identified Decoy Drone Bay 2022 | -10/Exiles | Found AWS/Autocannon 2065 | -10/Exiles | Warned to stay clear of 0b10 Research branches 2066 | -10/Exiles | Exiles lab attacked by MAIN.C 2184 | -10/Exiles | Identified exit to Mines 2184 | -10/Exiles | Discovered exit to Mines (range 12) 2203 | -10/Exiles | Left Exiles lab with AWS/Autocannon 2203 | -10/Exiles | Entered Mines 2268 | -9/Mines | Identified exit to Materials 2268 | -9/Mines | Discovered exit to Materials (range 8) 2466 | -9/Mines | Assembled infested the area 2513 | -9/Mines | Core integrity fell below 50% 2530 | -9/Mines | Core integrity fell below 20% 2534 | -9/Mines | Destroyed by as-65315 with Assembled Blade Last Messages --------------- 02477_ System corrupted: Component data lost. 02485_ C-30 ARC bursts open, deploying its payload. 02485_ D-53 Grenadier unfolds itself. 02498_ Lgt. Nuclear Core destroyed. 02502_ Aluminum Leg destroyed. 02502_ D-53 Grenadier destroyed. 02504_ Lgt. Ion Engine destroyed. 02506_ The unstable cave ceiling collapses. 02506_ Lgt. EM Pulse Cannon destroyed. 02507_ The unstable cave ceiling collapses. 02508_ Lgt. EM Pulse Cannon destroyed. 02511_ The unstable cave ceiling collapses. 02512_ Aluminum Leg destroyed. 02513_ The unstable cave ceiling collapses. 02519_ U-05 Engineer lays Concrete. 02520_ D-53 Grenadier destroyed. 02520_ U-05 Engineer lays Concrete. 02525_ U-05 Engineer builds a Wall. 02532_ The unstable cave ceiling collapses. 02533_ U-05 Engineer lays Concrete. Map ----- +----------------------------------------------------+ | ?????????????????????????##????# % | | ???????????????????????????????# ############# | | ???????????????????????????????## ##??????????# | | ????????????????????????????????####??????????# | | ??????????????????????????????????????????????# | | ?????????????????????????????????????????????## | | ????????????????????????????????????????????## # | | ????????????????????????????????????????????# # | | ????????????????????????????????????????????# ? | | ????????????????????????????????????????????# #? | | ????????????????????????????????????????????# ## | | ????????????????????????????????????????????# | | ????????????????????????????????????????????# | | ????????????????????#??????####?????????????# "# | | ????????????????????#"???### #?????????????#" "# | | ??????????????????###%??## ????????????##"% "# | | ??????????????????? "### ???????#######" # | | ???????????????????? ???????# "% # | | ????????????????????# ???????# ######"%% # | | ?????????????????????# #####???# #????## [ # | | ?????????????????????# ##??# #????# ## | | ?????????????????????# ## # ###?# #????# ##? | | ????????????????????## # #?# #????# #?? | | ????????????????????# # # #?# #????# #?? | | ????????????????????# u# #### #????# #?? | | ????????????????????# u@ a #????# ?? | | ????????????????????## aa #????## ? | | ?????????????????????## ######?????# | | ??????????????????????# #?????????? | | ??????????????????????# # ##????????? | | ??????????????????????## # #####????? # | | ??????????????????????? ######## ##????# ## | | ?????????????????????? ???????## #????? #? | | ????????????????????? ????????## #????? #? | | ???????????????????? ?????????## #????? ? | | ???????????????????# ???????????## ##?????# ? | | ???????????????????## ?????????????####??????? ? | | ????????????????????#? ???????????????????????? ?? | | ?????????????????????# ??????????????????????????? | | ?????????????????????#???????????????????????????? | | ?????????????????????????????????????????????????? | | ?????????????????????????????????????????????????? | | ?????????????????????????????????????????????????? | | ?????????????????????????????????????????????????? | | ?????????????????????????????????????????????????? | | ?????????????????????????????????????????????????? | | ?????????????????????????????????????????????????? | | ?????????????????????????????????????????????????? | | ?????????????????????????????????????????????????? | | ?????????????????????????????????????????????????? | +----------------------------------------------------+ Best States ------------- Heat Dissipation 25 Energy Generation 14 Energy Capacity 160 Matter Stores 300 Matter Capacity 300 Sight Range 16 Robot Scan Range 10 Terrain Scan Density 10 Armor Coverage 150 Resistance: KI 35 Resistance: TH 35 Resistance: EX 35 Resistance: EM 35 Resistance: I 35 Resistance: S 35 Resistance: P 35 Evasion (%) 40 Offensive Hacking 20 Item Schematics ----------------- None Robot Schematics ------------------ None Fabricated ------------ Nothing Alien Tech Used ----------------- None Achievements -------------- None Challenges ------------ None Game ------ Seed ElectronSpreadSlayer Manual? 0 Play Time 00:19:44 Cumulative 92.8 hours Start 2021.01.05 @ 19:00:54 End 2021.01.05 @ 19:20:51 Sessions 1 Manual Loads 0 Difficulty Explorer Special Mode None Game No. 159 Rogue 0 Adventurer 0 Explorer 159 Win Type - Total 1 Types 1/0/0/0/0/0/0/0/0 Lore% 61 Gallery% 67 Achievement% 50 Wizard Run 0 Options --------- ASCII 0 Keyboard 0 Movement Numpad Keybinds 0 Fullscreen 1 Font 36/Smallcaps Map View 76x50 Tactical HUD 1 Map Filters NONE Filters NONE Steam 1 RUN: 286d425f-d23e-47bc-8d4c-fcc13ff79770